bitfinex-derivatives/quotes_ETHF0:USTF0_20241230
["timestamp","ask_amount","ask_price","bid_price","bid_amount"]
[1735562060542,0.29279,3420.3,3420.2,0.6256]
[1735562061242,0.29281,3420.1,3420.0,4.59771689]
[1735562061942,0.29282,3420.0,3419.9,4.59771689]
[1735562063437,2.62240997,3420.0,3419.9,4.59771689]
[1735562063635,2.32958997,3420.0,3419.8,0.00284295]
[1735562063837,0.29283,3419.9,3419.8,0.00284295]
[1735562064233,0.86443,3419.9,3419.8,0.00284295]
[1735562066440,0.29283,3419.9,3419.8,0.00284295]
[1735562066642,0.29283,3419.9,3419.8,0.29567295]
[1735562066846,2.29816287,3420.0,3419.9,0.29283]
[1735562067039,2.29816287,3420.0,3419.9,3.50063]
[1735562067239,2.29816287,3420.3,3420.2,0.2928]
[1735562067449,2.59096287,3420.3,3420.1,0.2928]
[1735562067647,2.59096287,3420.3,3420.2,1.1736]
[1735562067841,2.59096287,3420.3,3420.2,1.772]
[1735562068242,0.2928,3420.3,3420.2,6.36971689]
[1735562069547,0.2928,3420.3,3420.2,1.772]
[1735562071748,0.2928,3420.2,3420.1,4.59771689]
[1735562072048,0.29281,3420.1,3420.0,4.59771689]
[1735562073346,2.32958997,3420.3,3419.9,8.38391689]
[1735562073545,0.29282,3420.0,3419.9,8.38391689]
[1735562074043,0.29282,3420.0,3419.9,8.67674689]
[1735562075546,2.29816287,3420.5,3419.9,8.38391689]
[1735562075851,0.29281,3420.1,3420.0,0.29281]
[1735562076044,2.29816287,3420.5,3419.9,8.38391689]
[1735562076246,0.29282,3420.0,3419.9,8.38391689]
[1735562077039,0.29282,3420.0,3419.9,8.67674689]
[1735562077745,0.29282,3420.0,3419.9,8.38391689]
[1735562078348,0.29282,3420.0,3419.9,8.67674689]
[1735562078650,0.29281,3420.1,3420.0,0.29281]
[1735562079448,4.62775284,3420.5,3419.9,3.7862]
[1735562079647,0.29282,3420.0,3419.9,3.7862]
[1735562080048,0.29282,3420.0,3419.9,4.07903]
[1735562080352,0.29282,3420.0,3419.9,3.7862]
[1735562080550,0.29282,3420.0,3419.9,4.07903]
[1735562081154,0.29282,3420.0,3419.9,10.97983658]
[1735562081446,0.73198,3420.4,3420.0,0.29281]
[1735562081447,0.29281,3420.1,3420.0,0.29281]
[1735562082851,0.29282,3420.0,3419.9,10.97982658]
[1735562083452,0.29282,3420.0,3419.9,4.07902]
[1735562087058,0.29282,3420.0,3419.9,0.5784]
[1735562087256,0.29283,3419.9,3419.8,9.19827673]
[1735562087456,2.62241997,3419.9,3419.8,9.19827673]
[1735562087658,2.62241997,3419.9,3419.8,0.00284295]
[1735562089359,4.92058284,3419.9,3419.8,0.00284295]
[1735562091359,2.59099287,3419.9,3419.8,0.00284295]
[1735562091660,2.59099287,3419.9,3419.8,0.29567295]
[1735562092056,2.29816287,3419.9,3419.8,0.29567295]
[1735562093065,2.32958997,3420.2,3419.8,6.90684572]
[1735562093261,2.32958997,3420.2,3419.9,0.29282]
[1735562093262,0.29281,3420.1,3419.9,0.29282]
[1735562093866,0.29281,3420.1,3420.0,0.5621]
[1735562095059,2.32958997,3420.2,3419.9,4.60172728]
[1735562095260,0.29282,3420.0,3419.9,4.60172728]
[1735562095460,3.2078,3420.1,3419.8,6.90684572]
[1735562095461,3.7675,3420.1,3419.8,6.90684572]
[1735562095659,2.62241997,3419.9,3419.8,6.90684572]
[1735562096158,0.29283,3419.9,3419.8,6.90684572]
[1735562096565,2.62241997,3419.9,3419.8,6.90684572]
[1735562097055,2.62241997,3419.9,3419.8,0.00284295]
[1735562097257,0.29283,3419.9,3419.8,0.00284295]
[1735562098355,0.29283,3419.8,3419.7,4.60249939]
[1735562099266,0.29283,3419.9,3419.7,4.60249939]
[1735562099463,2.59097287,3420.1,3419.9,0.29282]
[1735562099663,2.59097287,3420.1,3420.0,0.5308]
[1735562100560,0.29003828,3419.8,3419.7,4.60249939]
[1735562100758,0.29284,3419.7,3419.6,9.19543378]
[1735562102362,0.29286,3419.5,3419.4,4.60332284]
[1735562102756,7.83555284,3419.8,3419.4,4.60332284]
[1735562103072,5.50596287,3419.8,3419.4,4.60332284]
[1735562103262,0.29286,3419.5,3419.4,4.60332284]
[1735562103568,0.29286,3419.5,3419.4,6.90498427]
[1735562104473,0.29286,3419.6,3419.4,7.19785427]
[1735562104662,5.53738997,3419.8,3419.4,6.90498427]
[1735562104863,3.50064,3419.8,3419.6,0.29285]
[1735562105061,2.29816287,3419.7,3419.4,4.6039115]
[1735562105264,0.29286,3419.5,3419.4,4.6039115]
[1735562105767,0.29286,3419.6,3419.4,4.8967815]
[1735562106069,0.29286,3419.5,3419.4,6.90498427]
[1735562106767,0.29285,3419.6,3419.4,7.19784427]
[1735562107267,0.29286,3419.5,3419.4,6.90498427]
[1735562109066,0.29286,3419.5,3419.4,4.60347896]
[1735562110271,0.29287,3419.4,3419.3,10.11278427]
[1735562115184,0.29287,3419.4,3419.3,3.2078]
[1735562115675,3.06169997,3419.8,3419.2,11.11511378]
[1735562115872,0.29288,3419.3,3419.2,11.11511378]
[1735562116072,0.29288,3419.3,3419.2,10.82223378]
[1735562117580,0.29288,3419.3,3419.2,8.53107885]
[1735562120371,0.29288,3419.3,3419.2,6.22942048]
[1735562121377,0.29288,3419.3,3419.2,4.60262048]
[1735562123081,4.62775284,3419.5,3419.1,8.10331048]
[1735562123280,0.29289,3419.2,3419.1,7.81042048]
[1735562123482,0.29289,3419.2,3419.1,8.10331048]
[1735562123686,0.29289,3419.2,3419.1,7.81042048]
[1735562124085,2.62247997,3419.2,3419.1,4.60262048]
[1735562125787,0.29289,3419.1,3419.0,5.11722048]
[1735562126187,0.29289,3419.1,3419.0,4.60262048]
[1735562129492,4.62775284,3419.2,3418.8,4.60262048]
[1735562129790,5.83029997,3418.9,3418.8,4.60262048]
[1735562130787,5.53738997,3418.9,3418.5,4.60262048]
[1735562130992,2.62252997,3418.6,3418.5,4.60262048]
[1735562132487,2.62252997,3418.6,3418.2,3.2078]
[1735562132488,2.32958997,3418.6,3418.2,3.2078]
[1735562132791,2.62254997,3418.3,3418.2,3.2078]
[1735562133788,0.29298,3418.1,3418.0,4.60262048]
[1735562134388,0.293,3417.9,3417.8,6.90427885]
[1735562134591,5.83038997,3417.9,3417.8,6.90427885]
[1735562135387,0.29302,3417.6,3417.5,0.5299]
[1735562135588,2.62260997,3417.6,3417.5,0.5299]
[1735562136195,2.32958997,3417.6,3417.1,6.90427885]
[1735562136396,0.73255,3417.7,3417.1,6.90427885]
[1735562136397,0.29306,3417.2,3417.1,6.90427885]
[1735562136990,2.32958997,3417.3,3416.9,0.29308]
[1735562137197,0.29306,3417.2,3416.9,0.29308]
[1735562137395,0.29307,3417.1,3416.8,11.99566885]
[1735562137591,0.29308,3417.0,3416.8,11.70257885]
[1735562138093,0.29308,3416.9,3416.8,11.70257885]
[1735562138289,2.62266997,3416.9,3416.8,1.5905]
[1735562138705,0.29311,3416.6,3416.5,6.90427885]
[1735562138893,2.62269997,3416.6,3416.5,6.90427885]
[1735562139791,2.62269997,3416.6,3416.0,3.2078]
[1735562139792,0.29315,3416.1,3416.0,3.2078]
[1735562140590,0.29316,3416.0,3415.9,6.90427885]
[1735562141595,0.29318,3415.8,3415.7,0.5127]
[1735562141790,2.62276997,3415.8,3415.7,0.5127]
[1735562142799,0.29319,3415.7,3415.6,3.2078]
[1735562143193,0.29319,3415.7,3415.3,0.523]
[1735562143194,0.29321,3415.5,3415.3,0.523]
[1735562144398,2.32958997,3415.8,3415.3,0.523]
[1735562144604,0.29321,3415.4,3415.3,0.523]
[1735562148004,0.29322,3415.3,3415.2,3.6904]
[1735562148598,0.29322,3415.3,3415.2,3.2078]
[1735562150607,0.29318,3415.8,3415.2,3.2078]
[1735562150800,2.62275997,3415.9,3415.4,0.29321]
[1735562151101,0.29318,3415.8,3415.5,0.2932]
[1735562151296,2.62278997,3415.6,3415.3,0.76671]
[1735562151602,2.32958997,3415.6,3415.3,0.76671]
[1735562151899,2.62278997,3415.6,3415.3,0.4735]
[1735562152102,2.62278997,3415.6,3415.3,0.76672]
[1735562152291,2.62278997,3415.6,3415.3,0.4735]
[1735562152292,0.29321,3415.4,3415.3,0.4735]
[1735562152898,2.32958997,3415.6,3415.3,0.4735]
[1735562153195,2.62277997,3415.6,3415.3,0.76671]
[1735562153401,2.62277997,3415.6,3415.3,0.4735]
[1735562153600,2.32958997,3415.6,3415.4,0.29321]
[1735562154202,2.32958997,3415.6,3415.3,0.4735]
[1735562154406,2.32958997,3415.6,3415.5,0.2932]
[1735562155399,2.32958997,3416.2,3415.5,5.0]
[1735562155592,2.32958997,3416.2,3416.1,0.29315]
[1735562156394,5.53738997,3416.8,3416.1,3.2078]
[1735562156594,2.32958997,3416.8,3416.2,0.4875]
[1735562156798,2.32958997,3416.8,3416.6,3.2078]
[1735562157004,2.32958997,3416.8,3416.7,0.977]
[1735562157899,2.62267997,3416.8,3416.7,0.977]
[1735562159200,2.32958997,3416.8,3416.7,0.977]
[1735562159602,2.62267997,3416.8,3416.7,0.977]
[1735562161498,2.32958997,3416.8,3416.2,3.6953]
[1735562161697,2.62271997,3416.3,3416.2,3.6953]
[1735562162198,2.62271997,3416.3,3416.2,3.2078]
[1735562162712,2.62271997,3416.3,3415.9,0.5066]
[1735562162713,0.29316,3416.0,3415.9,0.5066]
[1735562162903,2.32958997,3416.0,3415.7,3.2078]
[1735562163603,0.29318,3415.8,3415.7,3.2078]
[1735562163805,0.29317,3415.9,3415.7,3.2078]
[1735562164102,0.29318,3415.8,3415.7,3.2078]
[1735562164304,2.32958997,3416.0,3415.7,3.2078]
[1735562164705,0.29318,3415.8,3415.7,3.2078]
[1735562165804,2.32958997,3416.0,3415.3,4.2153]
[1735562165805,0.29321,3415.4,3415.3,4.2153]
[1735562166005,2.32958997,3416.0,3415.3,4.2153]
[1735562166006,2.32958997,3415.5,3415.3,1.0075]
[1735562166211,0.29321,3415.4,3415.3,1.0075]
[1735562166803,0.29322,3415.3,3415.2,0.5036]
[1735562168808,0.29319,3415.7,3415.6,0.29319]
[1735562169307,2.32958997,3415.8,3415.4,3.2078]
[1735562169504,2.62276997,3415.8,3415.7,0.29319]
[1735562169805,2.32958997,3416.1,3415.5,0.4821]
[1735562169999,0.29318,3415.9,3415.8,0.29318]
[1735562170804,0.29318,3415.8,3415.7,0.29318]
[1735562172115,0.29319,3415.7,3415.6,0.29319]
[1735562173311,0.29319,3415.6,3415.5,0.4821]
[1735562173508,0.2932,3415.5,3415.4,3.2078]
[1735562173812,2.62278997,3415.5,3415.4,3.2078]
[1735562176310,2.62063823,3415.5,3415.4,3.2078]
[1735562176710,2.32958997,3415.5,3415.4,3.2078]
[1735562176910,2.62278997,3415.5,3415.4,3.50101]
[1735562177217,2.62278997,3415.5,3415.4,3.2078]
[1735562179421,0.29324,3415.1,3415.0,4.2078]
[1735562179717,2.62282997,3415.1,3415.0,4.2078]
[1735562179916,2.62282997,3415.1,3415.0,1.0]
[1735562182419,2.62282997,3415.1,3415.0,1.5048]
[1735562184419,2.62282997,3415.1,3415.0,1.0]
[1735562186320,2.62282997,3415.1,3415.0,1.29325]
[1735562186918,2.62282997,3415.1,3415.0,1.0]
[1735562187320,2.62282997,3415.1,3415.0,1.4919]
[1735562187911,2.62282997,3415.1,3415.0,1.78515]
[1735562188720,0.29324,3415.1,3415.0,1.78515]
[1735562188921,0.29324,3415.1,3415.0,1.4919]
[1735562189425,2.62282997,3415.1,3415.0,1.0]
[1735562191920,2.32958997,3415.4,3415.0,1.0]
[1735562192121,0.29322,3415.3,3415.1,0.76753]
[1735562192320,0.29322,3415.3,3415.2,0.4643]
[1735562192821,2.32958997,3415.4,3415.3,0.29322]
[1735562193016,2.32958997,3415.4,3415.3,3.50102]
[1735562193416,2.62279997,3415.4,3415.3,3.50102]
[1735562193620,2.32958997,3415.4,3415.2,0.4643]
[1735562193816,0.29322,3415.3,3415.2,0.4643]
[1735562194220,0.29324,3415.1,3415.0,1.0]
[1735562194421,2.62282997,3415.1,3415.0,1.0]
[1735562200619,2.62282997,3415.1,3415.0,1.5044]
[1735562202427,2.62282997,3415.1,3415.0,1.0]
[1735562205631,3.08212997,3415.1,3415.0,1.0]
[1735562206334,3.08212997,3415.1,3414.2,6.90427885]
[1735562206335,13.32627994,3415.1,3414.2,6.90427885]
[1735562206537,2.62289997,3414.3,3414.2,6.90427885]
[1735562206927,2.32958997,3414.3,3414.2,7.19758885]
[1735562207330,3.50109,3414.5,3414.3,0.29331]
[1735562207530,3.50109,3414.5,3414.0,3.2078]
[1735562207531,0.2933,3414.4,3414.0,3.2078]
[1735562207733,0.2933,3414.4,3414.2,0.29331]
[1735562208438,0.29331,3414.3,3414.1,0.29332]
[1735562208827,2.32958997,3414.3,3414.0,10.11207885]
[1735562209035,0.29332,3414.1,3414.0,10.11207885]
[1735562209232,2.32958997,3414.3,3414.0,10.11207885]
[1735562209732,2.62289997,3414.3,3414.1,0.29332]
[1735562210340,2.32958997,3414.3,3414.1,0.29332]
[1735562210533,0.29332,3414.2,3414.1,0.29332]
[1735562211532,0.29332,3414.1,3414.0,3.50113]
[1735562211733,0.29332,3414.2,3414.1,0.29332]
[1735562212435,2.32958997,3414.3,3414.0,3.2078]
[1735562212634,0.29332,3414.1,3414.0,3.50113]
[1735562216039,0.29332,3414.1,3414.0,3.2078]
[1735562219939,0.29332,3414.1,3414.0,3.50113]
[1735562220243,0.29332,3414.1,3414.0,3.2078]
[1735562220744,0.29332,3414.1,3414.0,3.50113]
[1735562220936,0.29332,3414.2,3414.1,0.29332]
[1735562221140,0.29332,3414.1,3414.0,3.2078]
[1735562221445,0.29332,3414.1,3414.0,3.50113]
[1735562222149,0.29332,3414.1,3414.0,3.2078]
[1735562225242,0.29333,3414.0,3413.9,1.4268]
[1735562225549,2.62291997,3414.0,3413.9,1.4268]
[1735562226448,0.29336,3413.7,3413.6,6.90427885]
[1735562226746,0.29337,3413.6,3413.5,8.26377885]
[1735562226943,0.29337,3413.6,3413.5,7.35737885]
[1735562228246,0.29337,3413.6,3413.5,6.90427885]
[1735562228447,1.20427,3413.6,3413.5,6.90427885]
[1735562228649,0.9109,3413.6,3413.0,6.90427885]
[1735562228946,2.32958997,3413.4,3413.1,0.29341]
[1735562229149,3.2078,3413.7,3413.2,3.2078]
[1735562229150,5.53738997,3413.7,3413.2,3.2078]
[1735562229445,4.62775284,3414.0,3413.9,0.29334]
[1735562229650,2.29816287,3414.0,3413.9,0.29334]
[1735562229854,2.59148287,3414.2,3414.0,0.29333]
[1735562230058,2.59148287,3414.2,3414.1,0.4367]
[1735562230752,2.29816287,3414.2,3414.1,0.4367]
[1735562231249,0.29331,3414.2,3414.1,0.4367]
[1735562231451,2.32958997,3414.2,3414.1,0.73002]
[1735562231657,2.32958997,3414.2,3414.1,0.4367]
[1735562233354,2.62289997,3414.2,3414.1,0.4367]
[1735562234154,2.32958997,3414.2,3414.1,0.4367]
[1735562234953,2.62289997,3414.2,3414.1,0.4367]
[1735562236058,2.32958997,3414.2,3414.1,0.4367]
[1735562236255,2.32958997,3414.2,3414.1,0.73002]
[1735562236451,2.32958997,3414.5,3414.3,0.2933]
[1735562236653,2.62287997,3414.5,3414.4,0.8736]
[1735562237353,2.32958997,3414.5,3414.1,0.4367]
[1735562237559,0.29332,3414.1,3414.0,3.2078]
[1735562239958,2.29816287,3414.6,3414.0,3.2078]
[1735562240158,2.32958997,3414.4,3414.0,3.2078]
[1735562240556,2.62288997,3414.4,3414.2,0.29331]
[1735562240860,2.29816287,3414.6,3414.0,3.2078]
[1735562241047,2.29816287,3414.6,3414.5,0.29329]
[1735562241350,2.32958997,3414.7,3414.5,0.29329]
[1735562241552,2.62285997,3414.7,3414.6,0.4406]
[1735562241753,2.62285997,3414.7,3414.6,0.8921]
[1735562241951,2.32958997,3414.7,3414.6,0.8921]
[1735562242161,2.62285997,3414.7,3414.6,0.8921]
[1735562242962,2.32958997,3414.7,3414.6,0.8921]
[1735562243554,2.62285997,3414.7,3414.6,0.8921]
[1735562243761,2.32958997,3414.7,3414.6,1.18538]
[1735562243966,2.62285997,3414.7,3414.6,0.8921]
[1735562247567,0.2933,3414.4,3414.3,6.90427885]
[1735562247766,2.62288997,3414.4,3414.3,6.90427885]
[1735562248661,2.32958997,3414.4,3414.2,0.4418]
[1735562248862,0.29331,3414.3,3414.2,0.4418]
[1735562253367,0.29331,3414.2,3414.1,6.90427885]
[1735562253567,0.29331,3414.2,3414.1,5.95783442]
[1735562253771,0.1703,3414.2,3414.0,9.19543378]
[1735562253973,5.83070997,3414.1,3414.0,9.19543378]
[1735562255365,8.98463428,3414.1,3413.9,1.3563]
[1735562255567,0.29333,3414.0,3413.9,1.3563]
[1735562255768,0.29335,3413.8,3413.6,4.90418084]
[1735562255970,0.29335,3413.8,3413.7,1.3504]
[1735562257572,5.53738997,3414.1,3413.7,1.3504]
[1735562257770,0.29334,3414.0,3413.8,0.29334]
[1735562257971,2.32958997,3414.1,3414.0,0.29333]
[1735562258780,2.32958997,3414.1,3413.7,1.3504]
[1735562258983,2.32958997,3414.1,3413.9,0.29333]
[1735562259174,2.62291997,3414.1,3413.9,0.29333]
[1735562259376,0.29333,3414.0,3413.8,0.29335]
[1735562260080,2.32958997,3414.1,3413.9,0.29334]
[1735562260081,2.62291997,3414.1,3413.9,0.29334]
[1735562260283,0.29334,3413.9,3413.8,9.48877378]
[1735562260677,0.29333,3414.0,3413.8,9.48877378]
[1735562260879,0.29333,3414.0,3413.9,0.29334]
[1735562261882,0.29334,3413.9,3413.8,9.19543378]
[1735562263178,2.32958997,3414.1,3413.7,1.64375]
[1735562263179,0.29335,3413.8,3413.7,1.64375]
[1735562263380,0.29335,3413.8,3413.7,1.3504]
[1735562263780,2.62293997,3413.8,3413.7,1.3504]
[1735562264688,2.32958997,3413.8,3413.6,12.40323378]
[1735562264883,1.17726,3413.7,3413.6,12.40323378]
[1735562265583,1.17726,3413.7,3413.6,7.81845569]
[1735562265584,0.29336,3413.7,3413.6,7.81845569]
[1735562268487,0.29336,3413.7,3413.6,4.61065569]
[1735562271288,3.2078,3414.0,3413.6,4.61065569]
[1735562271594,2.29686734,3414.1,3414.0,0.29333]
[1735562271781,0.10176734,3414.1,3414.0,1.57706843]
[1735562271985,3.44724431,3414.2,3414.1,0.29332]
[1735562272185,3.44724431,3414.2,3414.1,1.57705843]
[1735562272586,3.44724431,3414.2,3414.1,0.29332]
[1735562273188,2.62288997,3414.4,3414.0,11.49429223]
[1735562273387,2.62288997,3414.4,3414.3,3.50111]
[1735562273897,0.29329,3414.5,3414.4,0.29329]
[1735562274489,2.62286997,3414.7,3414.6,0.29328]
[1735562275091,2.32958997,3414.7,3414.6,0.29328]
[1735562275291,2.62285997,3414.7,3414.6,0.29328]
[1735562275495,2.32958997,3414.7,3414.6,0.29328]
[1735562275993,2.62285997,3414.7,3414.6,0.29328]
[1735562276293,2.32958997,3414.7,3414.6,0.29328]
[1735562276492,2.62285997,3414.7,3414.6,0.29328]
[1735562276690,2.32958997,3414.7,3414.6,0.29328]
[1735562276893,0.29326,3414.9,3414.6,4.60760249]
[1735562277199,2.32958997,3415.0,3414.6,4.60760249]
[1735562277493,0.29327,3414.8,3414.7,0.29327]
[1735562277700,2.62283997,3415.0,3414.8,0.29326]
[1735562277901,5.77683428,3415.3,3415.1,0.29323]
[1735562278098,5.77683428,3415.3,3415.2,1.4014]
[1735562278302,2.62280997,3415.3,3415.2,1.4014]
[1735562278899,2.32958997,3415.3,3414.9,4.60760249]
[1735562279101,2.62283997,3415.0,3414.9,4.60760249]
[1735562279597,2.62283997,3415.0,3414.8,4.60760249]
[1735562279598,2.32958997,3415.0,3414.8,4.60760249]
[1735562279798,2.62283997,3415.0,3414.8,4.90086249]
[1735562280097,3.44724431,3415.6,3415.5,0.2932]
[1735562280293,3.44724431,3415.6,3415.5,3.2078]
[1735562280499,3.74043431,3415.6,3415.5,3.2078]
[1735562280892,0.29323,3415.2,3415.1,12.4231659]
[1735562281086,5.83061997,3415.2,3415.1,9.2153659]
[1735562281393,2.62281997,3415.2,3415.1,9.2153659]
[1735562281986,2.32958997,3415.2,3414.8,4.89674468]
[1735562282296,0.29324,3415.1,3414.8,4.89674468]
[1735562282491,2.32958997,3415.2,3414.8,4.60348468]
[1735562282893,0.29325,3414.9,3414.8,4.60348468]
[1735562284396,0.29325,3414.9,3414.7,4.60348468]
[1735562284597,0.29325,3414.9,3414.7,4.89675468]
[1735562285192,0.4865,3415.1,3414.7,4.60348468]
[1735562285393,0.29326,3414.8,3414.7,4.60348468]
[1735562285795,0.29326,3414.8,3414.6,8.55146468]
[1735562286287,0.4771,3415.0,3414.6,4.60348468]
[1735562286288,0.29327,3414.7,3414.6,4.60348468]
[1735562286489,0.2933,3414.4,3414.3,9.2153659]
[1735562286796,2.62288997,3414.4,3413.5,16.09200912]
[1735562286997,3.50111,3414.2,3414.1,11.25604495]
[1735562287597,0.29336,3413.7,3413.6,11.25604495]
[1735562288291,0.77846,3413.7,3413.6,11.25604495]
[1735562289297,5.11911,3414.2,3413.3,3.2078]
[1735562289298,2.32958997,3414.1,3413.3,3.2078]
[1735562289499,2.32958997,3413.8,3413.3,3.2078]
[1735562289702,0.29337,3413.6,3413.3,3.2078]
[1735562290200,2.32958997,3413.8,3413.3,3.2078]
[1735562290798,0.29337,3413.5,3413.3,3.50119]
[1735562290998,2.32958997,3413.8,3413.4,0.29338]
[1735562291201,2.62293997,3413.8,3413.5,0.29337]
[1735562291402,0.29335,3413.8,3413.6,0.29337]
[1735562291603,0.29336,3413.7,3413.4,0.29338]
[1735562291807,0.29335,3413.8,3413.5,0.29337]
[1735562292194,0.29337,3413.6,3413.3,3.50119]
[1735562292603,2.32958997,3413.8,3413.3,3.2078]
[1735562292604,0.29338,3413.4,3413.3,3.2078]
[1735562295012,2.32958997,3413.8,3413.3,3.2078]
[1735562295310,0.29338,3413.4,3413.3,3.2078]
[1735562295805,0.29338,3413.5,3413.3,3.2078]
[1735562296017,0.29338,3413.5,3413.3,3.50119]
[1735562296203,2.32958997,3413.8,3413.3,3.2078]
[1735562296399,0.29335,3413.8,3413.6,0.29336]
[1735562296605,0.29335,3413.8,3413.7,0.8749]
[1735562296805,3.44724431,3414.3,3413.7,4.537]
[1735562297011,5.77683428,3414.4,3413.7,4.537]
[1735562297307,6.07013428,3414.4,3414.2,0.29331]
[1735562297503,3.44724431,3414.4,3414.3,0.29331]
[1735562298610,0.29329,3414.5,3414.4,0.2933]
[1735562299108,0.29329,3414.5,3414.1,3.2078]
[1735562299109,2.32958997,3414.8,3414.1,3.2078]
[1735562299305,0.29331,3414.3,3414.2,0.29331]
[1735562299608,0.4399,3414.7,3414.1,3.2078]
[1735562299812,0.4399,3414.7,3414.2,0.29331]
[1735562300110,0.4399,3414.7,3414.1,3.2078]
[1735562300411,0.29331,3414.2,3414.1,3.2078]
[1735562302002,0.29331,3414.2,3414.1,3.50112]
[1735562302203,2.32958997,3414.5,3414.1,3.2078]
[1735562302410,0.29331,3414.2,3414.1,3.50112]
[1735562302605,2.62285997,3414.8,3414.7,0.29327]
[1735562303107,2.32958997,3414.8,3414.1,3.2078]
[1735562303411,0.29331,3414.2,3414.1,3.50112]
[1735562303616,2.32958997,3414.5,3414.1,3.2078]
[1735562303811,0.29331,3414.3,3414.2,0.29331]
[1735562304007,0.2933,3414.4,3414.2,0.29331]
[1735562304211,0.29331,3414.3,3414.2,0.29331]
[1735562304407,2.32958997,3414.5,3414.1,3.2078]
[1735562304912,0.29331,3414.3,3414.2,0.29331]
[1735562305108,0.2933,3414.4,3414.3,0.2933]
[1735562305305,2.32958997,3414.5,3414.1,3.2078]
[1735562305508,0.29335,3413.9,3413.8,0.29335]
[1735562305715,0.29335,3413.8,3413.7,0.8749]
[1735562305914,0.29336,3413.7,3413.6,3.2078]
[1735562306109,0.29339,3413.3,3413.2,3.2078]
[1735562306311,2.62297997,3413.3,3413.2,3.2078]
[1735562308615,0.29338,3413.4,3413.2,3.5012]
[1735562308818,0.29339,3413.3,3413.2,3.5012]
[1735562309017,0.4367,3413.5,3413.2,3.5012]
[1735562309215,0.29339,3413.4,3413.2,3.5012]
[1735562309415,0.29339,3413.3,3413.2,3.2078]
[1735562311715,0.29339,3413.3,3413.2,3.5012]
[1735562311917,0.29339,3413.3,3413.2,3.2078]
[1735562312513,2.62297997,3413.3,3413.2,3.2078]
[1735562316822,0.29344,3412.8,3412.6,3.2078]
[1735562317128,0.29344,3412.8,3412.6,3.50125]
[1735562317617,0.29344,3412.8,3412.6,3.2078]
[1735562317817,0.29344,3412.7,3412.6,3.2078]
[1735562318927,0.73164,3412.8,3412.6,3.50125]
[1735562319220,2.77698997,3413.2,3412.6,3.50125]
[1735562319422,0.4411,3413.1,3412.6,3.50125]
[1735562319621,0.29344,3412.7,3412.6,3.50125]
[1735562321522,0.29344,3412.7,3412.6,3.2078]
[1735562323622,2.32958997,3412.9,3412.6,3.2078]
[1735562323826,0.29344,3412.7,3412.6,3.2078]
[1735562325325,0.29344,3412.7,3412.6,3.93465]
[1735562325519,0.29344,3412.7,3412.6,3.6412]
[1735562325721,0.4411,3413.1,3412.6,3.6412]
[1735562326026,0.29343,3412.9,3412.8,0.29343]
[1735562326330,0.29343,3412.8,3412.7,1.17244]
[1735562327525,0.29343,3412.8,3412.7,0.879]
[1735562329932,0.29343,3412.8,3412.7,1.17244]
[1735562330736,0.29343,3412.8,3412.7,0.879]
[1735562334833,0.29343,3412.8,3412.7,1.17244]
[1735562335936,0.29342,3413.0,3412.9,0.29342]
[1735562336137,0.29343,3412.8,3412.7,0.879]
[1735562336338,0.29343,3412.8,3412.7,1.17244]
[1735562336635,0.29343,3412.8,3412.7,0.879]
[1735562337336,2.32958997,3412.9,3412.6,3.6412]
[1735562337540,0.29344,3412.7,3412.6,3.6412]
[1735562341246,0.29344,3412.7,3412.6,3.93465]
[1735562342247,0.29344,3412.8,3412.7,0.29343]
[1735562342448,0.29344,3412.8,3412.6,3.6412]
[1735562342449,1.16113,3413.1,3412.6,3.6412]
[1735562342650,0.29344,3412.8,3412.7,0.29344]
[1735562342843,1.16113,3413.1,3412.6,3.6412]
[1735562342844,0.29344,3412.7,3412.6,3.6412]
[1735562343242,0.29344,3412.7,3412.6,0.4334]
[1735562348745,0.29348,3412.4,3412.3,0.29347]
[1735562348954,0.29348,3412.4,3412.3,2.03335465]
[1735562349150,0.29348,3412.4,3412.3,1.73988465]
[1735562349454,0.29348,3412.3,3412.2,3.2078]
[1735562349644,1.18478,3412.3,3412.2,3.2078]
[1735562350848,0.29348,3412.3,3412.2,3.50129]
[1735562351155,0.29348,3412.3,3412.2,3.2078]
[1735562352555,0.29348,3412.3,3412.2,3.50129]
[1735562353557,0.4474,3412.6,3412.2,3.2078]
[1735562353759,0.29348,3412.4,3412.3,0.29347]
[1735562354351,0.4474,3412.6,3412.2,3.2078]
[1735562354552,0.29348,3412.3,3412.2,3.50128]
[1735562354957,0.29348,3412.3,3412.2,10.39777102]
[1735562355561,0.4474,3412.6,3412.2,10.10429102]
[1735562356058,0.29346,3412.6,3412.5,0.29346]
[1735562356254,0.29348,3412.4,3412.3,0.29347]
[1735562356454,0.29348,3412.3,3412.2,10.10429102]
[1735562356860,0.29348,3412.3,3412.2,10.39778102]
[1735562357262,0.29348,3412.3,3412.2,10.10429102]
[1735562357856,0.29348,3412.3,3412.2,10.39778102]
[1735562358256,0.29348,3412.3,3412.2,10.10429102]
[1735562358563,0.29348,3412.3,3412.2,10.39778102]
[1735562359058,0.29348,3412.3,3412.2,3.2078]
[1735562359363,0.29348,3412.3,3412.2,3.50129]
[1735562359557,3.44724431,3412.7,3412.2,3.2078]
[1735562359764,0.29346,3412.5,3412.4,0.29346]
[1735562360259,0.29348,3412.3,3412.2,3.50128]
[1735562360465,0.29348,3412.3,3412.2,12.39824411]
[1735562360759,0.29348,3412.3,3412.2,12.69173411]
[1735562361865,0.29348,3412.3,3412.2,3.50129]
[1735562363062,0.29348,3412.4,3412.3,0.29347]
[1735562364158,0.29348,3412.4,3412.3,7.21798109]
[1735562364461,0.29346,3412.5,3412.4,0.29346]
[1735562364765,0.29347,3412.5,3412.4,0.29347]
[1735562364958,0.29346,3412.6,3412.5,0.29345]
[1735562365359,0.29347,3412.5,3412.4,0.29346]
[1735562365861,3.88214431,3412.9,3412.3,9.19044411]
[1735562366055,3.44724431,3412.9,3412.8,3.2078]
[1735562366259,3.74067431,3412.9,3412.8,3.50123]
[1735562366453,3.44724431,3412.9,3412.8,3.50123]